[Event "*** Titled Tuesday Blitz"]
[Site "Chess.com"]
[Date "2020.10.20"]
[Round "3"]
[White "mamonika"]
[Black "garfield_pg"]
[Result "0-1"]
[WhiteElo "1994"]
[BlackElo "2306"]
[TimeControl "180+1"]
[EndTime "10:31:50 PDT"]
[Termination "garfield_pg won on time"]

1. e4 {[%clk 0:03:00.9]} 1... c5 {[%clk 0:02:59.7]} 2. Nf3 {[%clk 0:03:00.9]}
2... a6 {[%clk 0:03:00.3]} 3. d4 {[%clk 0:03:01.2]} 3... cxd4 {[%clk 0:03:01.2]}
4. Nxd4 {[%clk 0:03:02.1]} 4... Nf6 {[%clk 0:03:01.7]} 5. Nc3 {[%clk 0:03:01.1]}
5... e5 {[%clk 0:03:02.3]} 6. Nf3 {[%clk 0:02:56.6]} 6... Bb4 {[%clk 0:03:02]}
7. Bd3 {[%clk 0:02:48.7]} 7... d5 {[%clk 0:03:02.2]} 8. exd5 {[%clk 0:02:46.2]}
8... e4 {[%clk 0:03:03.1]} 9. Qe2 {[%clk 0:02:43.9]} 9... O-O {[%clk 0:03:03.1]}
10. Bxe4 {[%clk 0:02:32.7]} 10... Nxe4 {[%clk 0:03:03.2]} 11. Qxe4 {[%clk
0:02:28.3]} 11... Re8 {[%clk 0:03:03.6]} 12. Ne5 {[%clk 0:02:26.4]} 12... Bxc3+
{[%clk 0:03:02.8]} 13. bxc3 {[%clk 0:02:24.9]} 13... f6 {[%clk 0:03:03.4]} 14.
O-O {[%clk 0:02:04]} 14... Rxe5 {[%clk 0:03:02.1]} 15. Qh4 {[%clk 0:01:54.6]}
15... Rxd5 {[%clk 0:03:01]} 16. c4 {[%clk 0:01:53.3]} 16... Rd4 {[%clk
0:03:00.4]} 17. Qg3 {[%clk 0:01:51.2]} 17... Rxc4 {[%clk 0:02:58.1]} 18. Qb3
{[%clk 0:01:49.3]} 18... b5 {[%clk 0:02:54.9]} 19. a4 {[%clk 0:01:28.4]} 19...
Be6 {[%clk 0:02:49]} 20. axb5 {[%clk 0:01:28.4]} 20... Nd7 {[%clk 0:02:46.6]}
21. bxa6 {[%clk 0:01:26.6]} 21... Nc5 {[%clk 0:02:46.8]} 22. Qe3 {[%clk
0:01:17.6]} 22... Qc8 {[%clk 0:02:44.5]} 23. Ba3 {[%clk 0:01:14.4]} 23... Bf7
{[%clk 0:02:44.7]} 24. Rfd1 {[%clk 0:01:03.9]} 24... Rxa6 {[%clk 0:02:44.6]} 25.
Bxc5 {[%clk 0:00:56.8]} 25... Rxa1 {[%clk 0:02:45.5]} 26. Rxa1 {[%clk
0:00:54.5]} 26... Rxc5 {[%clk 0:02:46.4]} 27. Qe4 {[%clk 0:00:54]} 27... Rxc2
{[%clk 0:02:44.9]} 28. h4 {[%clk 0:00:53.6]} 28... Rc1+ {[%clk 0:02:44.8]} 29.
Rxc1 {[%clk 0:00:52.5]} 29... Qxc1+ {[%clk 0:02:45.7]} 30. Kh2 {[%clk
0:00:51.1]} 30... Qc8 {[%clk 0:02:46.2]} 31. g4 {[%clk 0:00:44.6]} 31... h6
{[%clk 0:02:47.1]} 32. g5 {[%clk 0:00:41.2]} 32... Qe6 {[%clk 0:02:48]} 33. Qa8+
{[%clk 0:00:39.3]} 33... Qe8 {[%clk 0:02:48.1]} 34. Qf3 {[%clk 0:00:36.8]} 34...
fxg5 {[%clk 0:02:48.2]} 35. hxg5 {[%clk 0:00:36.9]} 35... hxg5 {[%clk
0:02:49.1]} 36. Qg4 {[%clk 0:00:37]} 36... Bg6 {[%clk 0:02:50]} 37. Qxg5 {[%clk
0:00:34.6]} 37... Qf7 {[%clk 0:02:50.9]} 38. Kg3 {[%clk 0:00:30.8]} 38... Qf6
{[%clk 0:02:51.8]} 39. Qg4 {[%clk 0:00:28.7]} 39... Kf7 {[%clk 0:02:52.7]} 40.
Qd7+ {[%clk 0:00:28.3]} 40... Qe7 {[%clk 0:02:53]} 41. Qd5+ {[%clk 0:00:28.4]}
41... Qe6 {[%clk 0:02:53.4]} 42. Qb7+ {[%clk 0:00:28.2]} 42... Kf6 {[%clk
0:02:53.6]} 43. Qf3+ {[%clk 0:00:27.4]} 43... Qf5 {[%clk 0:02:53.7]} 44. Qc6+
{[%clk 0:00:27.2]} 44... Qe6 {[%clk 0:02:54.6]} 45. Qc3+ {[%clk 0:00:27]} 45...
Ke7 {[%clk 0:02:55.5]} 46. Qxg7+ {[%clk 0:00:26.7]} 46... Bf7 {[%clk 0:02:54.9]}
47. Qg5+ {[%clk 0:00:25.8]} 47... Ke8 {[%clk 0:02:54.7]} 48. Qb5+ {[%clk
0:00:24.6]} 48... Kf8 {[%clk 0:02:54.4]} 49. Qc5+ {[%clk 0:00:24.3]} 49... Kg7
{[%clk 0:02:54.2]} 50. Qg5+ {[%clk 0:00:24.3]} 50... Kf8 {[%clk 0:02:53.2]} 51.
Qd8+ {[%clk 0:00:24.3]} 51... Be8 {[%clk 0:02:53.7]} 52. Qg5 {[%clk 0:00:23]}
52... Bd7 {[%clk 0:02:54]} 53. Qf4+ {[%clk 0:00:21.2]} 53... Ke8 {[%clk
0:02:54.1]} 54. Qb8+ {[%clk 0:00:20.5]} 54... Kf7 {[%clk 0:02:52.5]} 55. Qf4+
{[%clk 0:00:20.2]} 55... Kg6 {[%clk 0:02:51.5]} 56. f3 {[%clk 0:00:17.7]} 56...
Qh3+ {[%clk 0:02:51.1]} 57. Kf2 {[%clk 0:00:18.1]} 57... Kh7 {[%clk 0:02:43.9]}
58. Qe4+ {[%clk 0:00:17.2]} 58... Bf5 {[%clk 0:02:43.4]} 59. Qe7+ {[%clk
0:00:16.8]} 59... Kg6 {[%clk 0:02:43.8]} 60. Qe8+ {[%clk 0:00:16.6]} 60... Kg7
{[%clk 0:02:43]} 61. Qe7+ {[%clk 0:00:16.6]} 61... Kh6 {[%clk 0:02:42.8]} 62.
Qf8+ {[%clk 0:00:16.5]} 62... Kh7 {[%clk 0:02:42.3]} 63. Qf7+ {[%clk 0:00:16.5]}
63... Kh8 {[%clk 0:02:41.5]} 64. Qf6+ {[%clk 0:00:16.3]} 64... Kg8 {[%clk
0:02:41.5]} 65. Qd8+ {[%clk 0:00:16.4]} 65... Kf7 {[%clk 0:02:41.7]} 66. Qc7+
{[%clk 0:00:16]} 66... Ke8 {[%clk 0:02:41.9]} 67. Qb8+ {[%clk 0:00:15.7]} 67...
Ke7 {[%clk 0:02:42]} 68. Qe5+ {[%clk 0:00:15.7]} 68... Be6 {[%clk 0:02:42.2]}
69. Qg7+ {[%clk 0:00:15.8]} 69... Kd6 {[%clk 0:02:41.9]} 70. Qd4+ {[%clk
0:00:15.8]} 70... Bd5 {[%clk 0:02:42.2]} 71. Qf6+ {[%clk 0:00:15.7]} 71... Kc5
{[%clk 0:02:42.6]} 72. Qc3+ {[%clk 0:00:15.3]} 72... Bc4 {[%clk 0:02:42.2]} 73.
Qe5+ {[%clk 0:00:15.1]} 73... Kb4 {[%clk 0:02:42.5]} 74. Qb8+ {[%clk 0:00:14.5]}
74... Kc3 {[%clk 0:02:42.5]} 75. Qe5+ {[%clk 0:00:14.2]} 75... Kc2 {[%clk
0:02:42.4]} 76. Qe4+ {[%clk 0:00:13.8]} 76... Bd3 {[%clk 0:02:42.9]} 77. Qc6+
{[%clk 0:00:13.9]} 77... Kd1 {[%clk 0:02:42.8]} 78. Qc7 {[%clk 0:00:10.1]} 78...
Qf1+ {[%clk 0:02:03.2]} 79. Ke3 {[%clk 0:00:08.3]} 79... Qe2+ {[%clk 0:01:55.5]}
80. Kd4 {[%clk 0:00:08.4]} 80... Qxf3 {[%clk 0:01:48.7]} 81. Qe5 {[%clk
0:00:08.4]} 81... Be2 {[%clk 0:01:40.4]} 82. Qe3 {[%clk 0:00:07.9]} 82... Qf6+
{[%clk 0:01:38]} 83. Qe5 {[%clk 0:00:07.7]} 83... Qh4+ {[%clk 0:01:33.1]} 84.
Qe4 {[%clk 0:00:07.6]} 84... Qh8+ {[%clk 0:01:31.3]} 85. Qe5 {[%clk 0:00:07.9]}
85... Qh1 {[%clk 0:01:21.5]} 86. Qe4 {[%clk 0:00:07.6]} 86... Qg1+ {[%clk
0:01:20]} 87. Qe3 {[%clk 0:00:06.2]} 87... Qg2 {[%clk 0:01:13.7]} 88. Qe4 {[%clk
0:00:06.1]} 88... Qg7+ {[%clk 0:01:11.9]} 89. Qe5 {[%clk 0:00:06.2]} 89... Qa7+
{[%clk 0:01:11.2]} 90. Qc5 {[%clk 0:00:06]} 90... Qa4+ {[%clk 0:01:04]} 91. Ke3
{[%clk 0:00:05.3]} 91... Qb3+ {[%clk 0:00:59.5]} 92. Ke4 {[%clk 0:00:04]} 92...
Qd3+ {[%clk 0:00:55]} 93. Ke5 {[%clk 0:00:04.1]} 93... Qg3+ {[%clk 0:00:51.6]}
94. Kd5 {[%clk 0:00:04.2]} 94... Bf3+ {[%clk 0:00:51]} 95. Kd4 {[%clk
0:00:04.5]} 95... Qf2+ {[%clk 0:00:50.8]} 96. Kc4 {[%clk 0:00:04.9]} 96... Be2+
{[%clk 0:00:50.8]} 97. Kb4 {[%clk 0:00:05.1]} 97... Qf4+ {[%clk 0:00:48.7]} 98.
Ka5 {[%clk 0:00:04.7]} 98... Qd2+ {[%clk 0:00:42]} 99. Kb6 {[%clk 0:00:03.7]}
99... Qd8+ {[%clk 0:00:39.7]} 100. Kb7 {[%clk 0:00:02]} 100... Bf3+ {[%clk
0:00:37.9]} 101. Ka7 {[%clk 0:00:01.6]} 101... Qa8+ {[%clk 0:00:35.4]} 102. Kb6
{[%clk 0:00:01.4]} 102... Qb7+ {[%clk 0:00:36.3]} 103. Ka5 {[%clk 0:00:01.5]}
103... Be2 {[%clk 0:00:33.6]} 104. Ka4 {[%clk 0:00:01.7]} 104... Qa6+ {[%clk
0:00:32.7]} 105. Kb3 {[%clk 0:00:02.1]} 105... Qd3+ {[%clk 0:00:30]} 106. Kb4
{[%clk 0:00:02.6]} 106... Qb1+ {[%clk 0:00:29.1]} 107. Kc3 {[%clk 0:00:02.5]}
107... Qa1+ {[%clk 0:00:27.2]} 108. Kb4 {[%clk 0:00:02.1]} 108... Bd3 {[%clk
0:00:25.4]} 109. Qc3 {[%clk 0:00:01.7]} 109... Qa6 {[%clk 0:00:21.7]} 0-1

[Event "*** Titled Tuesday Blitz"]
[Site "Chess.com"]
[Date "2020.10.20"]
[Round "3"]
[White "amintabatabaei"]
[Black "German_Bazeev"]
[Result "1/2-1/2"]
[WhiteElo "2949"]
[BlackElo "2708"]
[TimeControl "180+1"]
[EndTime "10:33:46 PDT"]
[Termination "Game drawn by 50-move rule"]

1. Nf3 {[%clk 0:03:00.9]} 1... Nf6 {[%clk 0:02:59.1]} 2. g3 {[%clk 0:03:01.5]}
2... g6 {[%clk 0:02:59.2]} 3. Bg2 {[%clk 0:03:02.1]} 3... Bg7 {[%clk 0:03:00.1]}
4. O-O {[%clk 0:03:02.7]} 4... d5 {[%clk 0:02:59.4]} 5. d4 {[%clk 0:03:02.6]}
5... O-O {[%clk 0:02:59.1]} 6. c3 {[%clk 0:03:02.4]} 6... c6 {[%clk 0:02:57.9]}
7. a4 {[%clk 0:03:02.3]} 7... a5 {[%clk 0:02:54.1]} 8. Na3 {[%clk 0:03:02.6]}
8... Bg4 {[%clk 0:02:53.6]} 9. Nc2 {[%clk 0:03:01]} 9... Bxf3 {[%clk 0:02:53.2]}
10. Bxf3 {[%clk 0:02:54.3]} 10... Nbd7 {[%clk 0:02:53.2]} 11. Bf4 {[%clk
0:02:51.3]} 11... Re8 {[%clk 0:02:52.9]} 12. Bg2 {[%clk 0:02:45.1]} 12... e5
{[%clk 0:02:50.9]} 13. dxe5 {[%clk 0:02:45.5]} 13... Nxe5 {[%clk 0:02:51.8]} 14.
Nd4 {[%clk 0:02:45.9]} 14... Qb6 {[%clk 0:02:43.2]} 15. Ra3 {[%clk 0:02:39.5]}
15... Rad8 {[%clk 0:02:40.5]} 16. Rb3 {[%clk 0:02:37]} 16... Qa6 {[%clk
0:02:30.8]} 17. Re1 {[%clk 0:02:35.5]} 17... Nc4 {[%clk 0:02:26.1]} 18. e3
{[%clk 0:02:13.9]} 18... Ne4 {[%clk 0:02:25.9]} 19. Bf1 {[%clk 0:01:49.6]} 19...
Nc5 {[%clk 0:02:09.8]} 20. Ra3 {[%clk 0:01:49.3]} 20... Qa7 {[%clk 0:01:50.2]}
21. Ra2 {[%clk 0:01:49.2]} 21... h6 {[%clk 0:01:45.2]} 22. h4 {[%clk 0:01:47.6]}
22... Ne4 {[%clk 0:01:43.6]} 23. Nf3 {[%clk 0:01:39.5]} 23... Ncd6 {[%clk
0:01:02]} 24. Qc2 {[%clk 0:01:37.1]} 24... Qa8 {[%clk 0:00:52.1]} 25. Bh3 {[%clk
0:01:23]} 25... f5 {[%clk 0:00:49.7]} 26. h5 {[%clk 0:01:14]} 26... g5 {[%clk
0:00:39.5]} 27. Bxd6 {[%clk 0:01:14.2]} 27... Rxd6 {[%clk 0:00:32.8]} 28. Bxf5
{[%clk 0:01:11.9]} 28... Rf6 {[%clk 0:00:33.4]} 29. Bxe4 {[%clk 0:00:52.5]}
29... Rxe4 {[%clk 0:00:34.3]} 30. Nd2 {[%clk 0:00:45.3]} 30... Re7 {[%clk
0:00:32.6]} 31. Raa1 {[%clk 0:00:41.5]} 31... Qe8 {[%clk 0:00:32]} 32. e4 {[%clk
0:00:39.8]} 32... Rfe6 {[%clk 0:00:30.3]} 33. Re3 {[%clk 0:00:34]} 33... d4
{[%clk 0:00:25.7]} 34. cxd4 {[%clk 0:00:33.5]} 34... Bxd4 {[%clk 0:00:26.6]} 35.
Rd3 {[%clk 0:00:33.6]} 35... Ba7 {[%clk 0:00:24.1]} 36. Qb3 {[%clk 0:00:31.4]}
36... Kh7 {[%clk 0:00:20.8]} 37. Rf3 {[%clk 0:00:23.6]} 37... Qxh5 {[%clk
0:00:18.3]} 38. Rf1 {[%clk 0:00:17.8]} 38... Qe8 {[%clk 0:00:17.8]} 39. Rf5
{[%clk 0:00:17.8]} 39... Rf7 {[%clk 0:00:15.8]} 40. Qf3 {[%clk 0:00:17.6]} 40...
Kg7 {[%clk 0:00:13.8]} 41. Nc4 {[%clk 0:00:14.5]} 41... Bd4 {[%clk 0:00:12]} 42.
b3 {[%clk 0:00:09.7]} 42... b6 {[%clk 0:00:11]} 43. Rd1 {[%clk 0:00:08.9]} 43...
c5 {[%clk 0:00:11.2]} 44. Rxf7+ {[%clk 0:00:06.3]} 44... Qxf7 {[%clk 0:00:11.3]}
45. Qxf7+ {[%clk 0:00:07.2]} 45... Kxf7 {[%clk 0:00:12.2]} 46. Re1 {[%clk
0:00:08.1]} 46... g4 {[%clk 0:00:12]} 47. Kg2 {[%clk 0:00:08.4]} 47... Rf6
{[%clk 0:00:12.2]} 48. Re2 {[%clk 0:00:09]} 48... Rf3 {[%clk 0:00:10.7]} 49.
Nxb6 {[%clk 0:00:02.4]} 49... Rxb3 {[%clk 0:00:11.1]} 50. Nc4 {[%clk 0:00:03.1]}
50... Rb4 {[%clk 0:00:11.5]} 51. Nxa5 {[%clk 0:00:03.6]} 51... Rxa4 {[%clk
0:00:12]} 52. Nc6 {[%clk 0:00:04.1]} 52... Ke6 {[%clk 0:00:11.7]} 53. e5 {[%clk
0:00:03.8]} 53... Ra6 {[%clk 0:00:10.2]} 54. Nd8+ {[%clk 0:00:03.1]} 54... Ke7
{[%clk 0:00:10.5]} 55. Nb7 {[%clk 0:00:02.7]} 55... Rb6 {[%clk 0:00:08]} 56. Nd6
{[%clk 0:00:03.1]} 56... Ke6 {[%clk 0:00:06.7]} 57. Nc4 {[%clk 0:00:03.6]} 57...
Rb4 {[%clk 0:00:06.7]} 58. Ne3 {[%clk 0:00:02.4]} 58... Bxe3 {[%clk 0:00:06.8]}
59. Rxe3 {[%clk 0:00:03.3]} 59... c4 {[%clk 0:00:06.9]} 60. Kf1 {[%clk
0:00:01.7]} 60... Rb3 {[%clk 0:00:06.3]} 61. Re4 {[%clk 0:00:02.3]} 61... h5
{[%clk 0:00:05.1]} 62. Rxc4 {[%clk 0:00:02.8]} 62... Rb5 {[%clk 0:00:05.7]} 63.
Rc6+ {[%clk 0:00:03.1]} 63... Kxe5 {[%clk 0:00:04.1]} 64. Rh6 {[%clk 0:00:03.8]}
64... Ke4 {[%clk 0:00:04.2]} 65. Rf6 {[%clk 0:00:04.2]} 65... Rf5 {[%clk
0:00:04.2]} 66. Re6+ {[%clk 0:00:04.1]} 66... Re5 {[%clk 0:00:04.7]} 67. Rf6
{[%clk 0:00:04.6]} 67... Rf5 {[%clk 0:00:05.1]} 68. Ra6 {[%clk 0:00:05.2]} 68...
Re5 {[%clk 0:00:05.5]} 69. Kg2 {[%clk 0:00:05.6]} 69... Kf5 {[%clk 0:00:06]} 70.
Ra8 {[%clk 0:00:06.1]} 70... Kg5 {[%clk 0:00:06.4]} 71. Rg8+ {[%clk 0:00:06.8]}
71... Kh6 {[%clk 0:00:06.8]} 72. Kf1 {[%clk 0:00:07.4]} 72... Re6 {[%clk
0:00:06.2]} 73. Rf8 {[%clk 0:00:07.7]} 73... Kg6 {[%clk 0:00:06.1]} 74. Rd8
{[%clk 0:00:08.3]} 74... Re5 {[%clk 0:00:05.6]} 75. Rd6+ {[%clk 0:00:08.5]}
75... Kg5 {[%clk 0:00:05.8]} 76. Rd8 {[%clk 0:00:09]} 76... Re6 {[%clk 0:00:06]}
77. Rf8 {[%clk 0:00:08.9]} 77... Re5 {[%clk 0:00:06]} 78. Rg8+ {[%clk
0:00:08.5]} 78... Kh6 {[%clk 0:00:05.8]} 79. Kg1 {[%clk 0:00:07.9]} 79... Re6
{[%clk 0:00:05.7]} 80. Ra8 {[%clk 0:00:07.9]} 80... Kg5 {[%clk 0:00:05.5]} 81.
Ra5+ {[%clk 0:00:07.6]} 81... Kg6 {[%clk 0:00:05.8]} 82. Kg2 {[%clk 0:00:08.2]}
82... Re7 {[%clk 0:00:06.1]} 83. Kf1 {[%clk 0:00:08.5]} 83... Re6 {[%clk
0:00:05.7]} 84. Rd5 {[%clk 0:00:08.7]} 84... Re7 {[%clk 0:00:05.9]} 85. Rd6+
{[%clk 0:00:09.2]} 85... Kg5 {[%clk 0:00:06]} 86. Kg1 {[%clk 0:00:09.8]} 86...
Re5 {[%clk 0:00:06.1]} 87. Kg2 {[%clk 0:00:10.4]} 87... Re2 {[%clk 0:00:06.1]}
88. Rd5+ {[%clk 0:00:09.5]} 88... Kg6 {[%clk 0:00:06.4]} 89. Kf1 {[%clk
0:00:10.4]} 89... Re6 {[%clk 0:00:06.1]} 90. Rd4 {[%clk 0:00:10.9]} 90... Kg5
{[%clk 0:00:06.2]} 91. Rd8 {[%clk 0:00:11.6]} 91... Kg6 {[%clk 0:00:06.5]} 92.
Rg8+ {[%clk 0:00:11.6]} 92... Kh6 {[%clk 0:00:06.8]} 93. Rf8 {[%clk 0:00:11.8]}
93... Re5 {[%clk 0:00:07.1]} 94. Rf6+ {[%clk 0:00:11.6]} 94... Kg5 {[%clk
0:00:07.1]} 95. Ra6 {[%clk 0:00:12.2]} 95... Re7 {[%clk 0:00:06.7]} 96. Ra4
{[%clk 0:00:10.8]} 96... Kg6 {[%clk 0:00:06.6]} 97. Ra3 {[%clk 0:00:09.7]} 97...
Kg5 {[%clk 0:00:06.9]} 98. Kg2 {[%clk 0:00:09.9]} 98... Kg6 {[%clk 0:00:07.1]}
99. Ra2 {[%clk 0:00:10.3]} 99... Kg5 {[%clk 0:00:07.2]} 100. Rb2 {[%clk
0:00:10.3]} 100... Kg6 {[%clk 0:00:07.2]} 101. Rb5 {[%clk 0:00:10.7]} 101... Re6
{[%clk 0:00:07.1]} 102. f4 {[%clk 0:00:09]} 102... gxf3+ {[%clk 0:00:05.4]} 103.
Kxf3 {[%clk 0:00:09.9]} 103... Rf6+ {[%clk 0:00:06.2]} 104. Kg2 {[%clk
0:00:10.3]} 104... Re6 {[%clk 0:00:06.6]} 105. Kh3 {[%clk 0:00:10.3]} 105... Re4
{[%clk 0:00:06.5]} 106. Rb6+ {[%clk 0:00:10.7]} 106... Kg5 {[%clk 0:00:06.6]}
107. Rb5+ {[%clk 0:00:11.4]} 107... Kg6 {[%clk 0:00:07]} 108. Rd5 {[%clk
0:00:11.8]} 108... Ra4 {[%clk 0:00:06.3]} 109. Rd3 {[%clk 0:00:11.8]} 109... Kg5
{[%clk 0:00:06.5]} 110. Rc3 {[%clk 0:00:12]} 110... Kg6 {[%clk 0:00:06.8]} 111.
Rb3 {[%clk 0:00:12.4]} 111... Kg5 {[%clk 0:00:07.1]} 112. Rb6 {[%clk 0:00:12.8]}
112... Rc4 {[%clk 0:00:06.3]} 113. Rd6 {[%clk 0:00:12.7]} 113... Rb4 {[%clk
0:00:06.1]} 114. Rd5+ {[%clk 0:00:12.4]} 114... Kg6 {[%clk 0:00:06.3]} 115. Re5
{[%clk 0:00:13.1]} 115... Ra4 {[%clk 0:00:05.8]} 116. Kg2 {[%clk 0:00:13.5]}
116... Rb4 {[%clk 0:00:05.7]} 117. Kf3 {[%clk 0:00:13.9]} 117... Ra4 {[%clk
0:00:05.9]} 118. Rd5 {[%clk 0:00:14.2]} 118... Rb4 {[%clk 0:00:05.9]} 119. Ra5
{[%clk 0:00:14.6]} 119... Rc4 {[%clk 0:00:05.5]} 120. Kf2 {[%clk 0:00:15]}
120... Rc2+ {[%clk 0:00:05.3]} 121. Ke3 {[%clk 0:00:15.3]} 121... Rc3+ {[%clk
0:00:05.5]} 122. Kf4 {[%clk 0:00:15]} 122... Rc4+ {[%clk 0:00:05.9]} 123. Kf3
{[%clk 0:00:15.6]} 123... Rc3+ {[%clk 0:00:06.3]} 124. Kg2 {[%clk 0:00:16.2]}
124... Rc2+ {[%clk 0:00:06.7]} 125. Kh3 {[%clk 0:00:16.8]} 125... Rc4 {[%clk
0:00:07.5]} 126. Re5 {[%clk 0:00:17]} 126... Kh6 {[%clk 0:00:07.5]} 127. Re6+
{[%clk 0:00:16.9]} 127... Kg5 {[%clk 0:00:07.7]} 128. Rd6 {[%clk 0:00:17.3]}
128... Rb4 {[%clk 0:00:06.7]} 129. Rd3 {[%clk 0:00:17.3]} 129... Ra4 {[%clk
0:00:06.5]} 130. Rb3 {[%clk 0:00:17.6]} 130... Rc4 {[%clk 0:00:06.6]} 131. Rb5+
{[%clk 0:00:17.9]} 131... Kg6 {[%clk 0:00:06.3]} 132. Rb1 {[%clk 0:00:17.4]}
132... Rd4 {[%clk 0:00:06.5]} 133. Rf1 {[%clk 0:00:17.8]} 133... Kg5 {[%clk
0:00:06.4]} 134. Rf2 {[%clk 0:00:18.1]} 134... Rd1 {[%clk 0:00:05.5]} 135. Rb2
{[%clk 0:00:17.1]} 135... Rd4 {[%clk 0:00:05.8]} 136. Rc2 {[%clk 0:00:17.2]}
136... Kg6 {[%clk 0:00:06]} 137. Re2 {[%clk 0:00:17]} 137... Kg5 {[%clk
0:00:06.1]} 138. Kg2 {[%clk 0:00:17.5]} 138... Kg6 {[%clk 0:00:04.6]} 139. Kf3
{[%clk 0:00:17.5]} 139... Kg5 {[%clk 0:00:04.9]} 140. Re3 {[%clk 0:00:17.2]}
140... Rb4 {[%clk 0:00:05]} 141. Rc3 {[%clk 0:00:17.3]} 141... Kg6 {[%clk
0:00:05.2]} 142. Rc6+ {[%clk 0:00:17.2]} 142... Kg5 {[%clk 0:00:05.5]} 143. Rc5+
{[%clk 0:00:18.1]} 143... Kg6 {[%clk 0:00:05.8]} 144. Re5 {[%clk 0:00:18.5]}
144... Rb3+ {[%clk 0:00:05.6]} 145. Kg2 {[%clk 0:00:18.5]} 145... Rb4 {[%clk
0:00:06.1]} 146. Re3 {[%clk 0:00:18.1]} 146... Rc4 {[%clk 0:00:06.4]} 147. Rd3
{[%clk 0:00:18.4]} 147... Rb4 {[%clk 0:00:06.4]} 148. Rc3 {[%clk 0:00:18.9]}
148... Rd4 {[%clk 0:00:06.2]} 149. Kf3 {[%clk 0:00:19.3]} 149... Ra4 {[%clk
0:00:05.7]} 150. Rc5 {[%clk 0:00:19.1]} 150... Rb4 {[%clk 0:00:05.3]} 151. Ra5
{[%clk 0:00:18.5]} 151... Rc4 {[%clk 0:00:05.4]} 152. Kg2 {[%clk 0:00:18.9]}
152... Rb4 {[%clk 0:00:05.5]} 153. Kh3 {[%clk 0:00:19.5]} 1/2-1/2

[Event "*** Titled Tuesday Blitz"]
[Site "Chess.com"]
[Date "2020.10.20"]
[Round "4"]
[White "WuinaterJr"]
[Black "SophieNikoladze"]
[Result "1-0"]
[WhiteElo "2507"]
[BlackElo "2281"]
[TimeControl "180+1"]
[EndTime "10:35:20 PDT"]
[Termination "WuinaterJr won by resignation"]

1. d4 {[%clk 0:03:00.9]} 1... b5 {[%clk 0:02:57.1]} 2. Nf3 {[%clk 0:02:58.4]}
2... Bb7 {[%clk 0:02:56.1]} 3. e3 {[%clk 0:02:58.8]} 3... a6 {[%clk 0:02:55.5]}
4. c4 {[%clk 0:02:59]} 4... b4 {[%clk 0:02:53.5]} 5. Bd3 {[%clk 0:02:57.3]} 5...
e6 {[%clk 0:02:53.5]} 6. O-O {[%clk 0:02:57.7]} 6... c5 {[%clk 0:02:53.6]} 7. a3
{[%clk 0:02:56.3]} 7... Nf6 {[%clk 0:02:49.6]} 8. axb4 {[%clk 0:02:54.6]} 8...
cxb4 {[%clk 0:02:48.9]} 9. b3 {[%clk 0:02:55]} 9... d5 {[%clk 0:02:48.3]} 10.
Nbd2 {[%clk 0:02:54.9]} 10... Be7 {[%clk 0:02:45.5]} 11. Re1 {[%clk 0:02:55.2]}
11... O-O {[%clk 0:02:43.2]} 12. e4 {[%clk 0:02:55.3]} 12... dxe4 {[%clk
0:02:40.2]} 13. Nxe4 {[%clk 0:02:56.2]} 13... Qxd4 {[%clk 0:02:33]} 14. Nxd4
{[%clk 0:02:55.6]} 1-0

[Event "*** Titled Tuesday Blitz"]
[Site "Chess.com"]
[Date "2020.10.20"]
[Round "4"]
[White "MoreChessJulia"]
[Black "Colombiano07"]
[Result "1-0"]
[WhiteElo "1997"]
[BlackElo "2208"]
[TimeControl "180+1"]
[EndTime "10:35:38 PDT"]
[Termination "MoreChessJulia won by resignation"]

1. d4 {[%clk 0:02:59.8]} 1... d5 {[%clk 0:03:00.1]} 2. c4 {[%clk 0:02:59.5]}
2... c6 {[%clk 0:03:00.5]} 3. Nf3 {[%clk 0:02:59.2]} 3... Nf6 {[%clk 0:03:01.1]}
4. Nc3 {[%clk 0:02:58.9]} 4... a6 {[%clk 0:03:01.5]} 5. e3 {[%clk 0:02:58.5]}
5... Bf5 {[%clk 0:03:01]} 6. h3 {[%clk 0:02:56.9]} 6... e6 {[%clk 0:03:01]} 7.
Ne5 {[%clk 0:02:54.8]} 7... Nbd7 {[%clk 0:03:00.6]} 8. g4 {[%clk 0:02:54.4]}
8... Be4 {[%clk 0:03:00.2]} 9. f3 {[%clk 0:02:54.1]} 9... Bg6 {[%clk 0:02:59.2]}
10. h4 {[%clk 0:02:54]} 10... h5 {[%clk 0:02:51.2]} 11. Nxg6 {[%clk 0:02:53.5]}
11... fxg6 {[%clk 0:02:52.1]} 12. Qc2 {[%clk 0:02:53]} 12... Kf7 {[%clk
0:02:51.2]} 13. Bd3 {[%clk 0:02:52.7]} 13... hxg4 {[%clk 0:02:42.2]} 14. Bxg6+
{[%clk 0:02:52.2]} 14... Ke7 {[%clk 0:02:42.6]} 15. fxg4 {[%clk 0:02:51.7]}
15... Nxg4 {[%clk 0:02:42.3]} 16. e4 {[%clk 0:02:49.1]} 16... Ndf6 {[%clk
0:02:37]} 17. e5 {[%clk 0:02:47]} 1-0

[Event "*** Titled Tuesday Blitz"]
[Site "Chess.com"]
[Date "2020.10.20"]
[Round "4"]
[White "Natalya_Buksa"]
[Black "rududuyk"]
[Result "1-0"]
[WhiteElo "2551"]
[BlackElo "2161"]
[TimeControl "180+1"]
[EndTime "10:35:40 PDT"]
[Termination "Natalya_Buksa won by resignation"]

1. d4 {[%clk 0:03:00.9]} 1... e6 {[%clk 0:02:59.9]} 2. Nc3 {[%clk 0:03:01.1]}
2... f5 {[%clk 0:03:00.3]} 3. e4 {[%clk 0:03:00.8]} 3... fxe4 {[%clk 0:02:57.4]}
4. Nxe4 {[%clk 0:03:01.7]} 4... Nf6 {[%clk 0:02:57.9]} 5. Bg5 {[%clk 0:03:01.2]}
5... Be7 {[%clk 0:02:57.2]} 6. Bxf6 {[%clk 0:03:00.4]} 6... Bxf6 {[%clk
0:02:57.3]} 7. Qh5+ {[%clk 0:03:00.9]} 7... g6 {[%clk 0:02:56.2]} 8. Nxf6+
{[%clk 0:02:58.7]} 8... Qxf6 {[%clk 0:02:55.7]} 9. Qg4 {[%clk 0:02:59.3]} 9...
O-O {[%clk 0:02:55.1]} 10. O-O-O {[%clk 0:02:57.7]} 10... Qxf2 {[%clk
0:02:53.1]} 11. Nf3 {[%clk 0:02:58]} 11... d6 {[%clk 0:02:42]} 12. Bc4 {[%clk
0:02:54.6]} 12... d5 {[%clk 0:02:38.9]} 13. Bd3 {[%clk 0:02:53.6]} 13... e5
{[%clk 0:02:38.7]} 14. Qg5 {[%clk 0:02:51.1]} 14... exd4 {[%clk 0:02:28.5]} 15.
Qxd5+ {[%clk 0:02:47.9]} 15... Kh8 {[%clk 0:02:24.3]} 16. Qe5+ {[%clk
0:02:47.5]} 1-0

[Event "*** Titled Tuesday Blitz"]
[Site "Chess.com"]
[Date "2020.10.20"]
[Round "4"]
[White "biostatistician"]
[Black "davigator"]
[Result "1-0"]
[WhiteElo "2541"]
[BlackElo "2344"]
[TimeControl "180+1"]
[EndTime "10:36:08 PDT"]
[Termination "biostatistician won by resignation"]

1. d4 {[%clk 0:02:59.8]} 1... Nf6 {[%clk 0:02:58.8]} 2. Nf3 {[%clk 0:03:00.7]}
2... e6 {[%clk 0:02:57.7]} 3. c4 {[%clk 0:03:01]} 3... Bb4+ {[%clk 0:02:57.7]}
4. Nbd2 {[%clk 0:03:00.7]} 4... b6 {[%clk 0:02:57]} 5. a3 {[%clk 0:02:57.4]}
5... Be7 {[%clk 0:02:56.7]} 6. e4 {[%clk 0:02:57.6]} 6... d5 {[%clk 0:02:57.3]}
7. e5 {[%clk 0:02:56.9]} 7... Nfd7 {[%clk 0:02:57.4]} 8. Bd3 {[%clk 0:02:57.4]}
8... c5 {[%clk 0:02:57.1]} 9. O-O {[%clk 0:02:58.1]} 9... Nc6 {[%clk 0:02:56.7]}
10. Re1 {[%clk 0:02:57.9]} 10... cxd4 {[%clk 0:02:46.8]} 11. cxd5 {[%clk
0:02:57.8]} 11... Ncxe5 {[%clk 0:02:46.7]} 12. Nxe5 {[%clk 0:02:50.8]} 12...
Nxe5 {[%clk 0:02:40.4]} 13. Rxe5 {[%clk 0:02:51.7]} 13... Bf6 {[%clk 0:02:38.4]}
14. Bb5+ {[%clk 0:02:49.8]} 14... Kf8 {[%clk 0:02:38.2]} 15. Re1 {[%clk
0:02:45.6]} 15... Qxd5 {[%clk 0:02:37.5]} 16. Bd3 {[%clk 0:02:44.9]} 16... Rb8
{[%clk 0:02:33.5]} 17. Be4 {[%clk 0:02:37]} 17... Qd7 {[%clk 0:02:26.7]} 18. Nf3
{[%clk 0:02:34.2]} 18... h6 {[%clk 0:02:19.9]} 19. Bf4 {[%clk 0:02:34.1]} 1-0